bitfinex/quotes_SOLUSD_20250517
["timestamp","ask_amount","ask_price","bid_price","bid_amount"]
[1747485034202,131.7056,167.86,167.8,31.95943589]
[1747485034914,131.7056,167.86,167.8,46.8581248]
[1747485035814,131.7056,167.86,167.82,5.95876534]
[1747485038516,28.62856487,167.9,167.84,1.652]
[1747485039017,28.62856487,167.9,167.86,26.0]
[1747485039317,131.7056,167.95,167.89,26.0]
[1747485040317,131.7056,167.95,167.9,5.95592614]
[1747485045628,26.49724816,167.98,167.9,5.95592614]
[1747485046535,20.5441,167.98,167.9,5.95592614]
[1747485047022,26.49727797,167.98,167.9,5.95592614]
[1747485048338,26.49727797,167.98,167.9,26.0]
[1747485048924,41.3800021,167.98,167.9,31.95590008]
[1747485049612,26.49727797,167.98,167.9,31.95590008]
[1747485051124,137.65843203,167.99,167.9,31.95590008]
[1747485052224,131.7056,167.99,167.92,5.95521676]
[1747485056530,137.65838779,167.99,167.92,5.95521676]
[1747485057014,137.65838779,167.99,167.91,5.95545194]
[1747485060034,131.7056,167.99,167.92,18.64964886]
[1747485061216,131.7056,167.99,167.93,26.0]
[1747485063139,131.7056,167.99,167.95,26.0]
[1747485063337,5.95157419,168.03,167.95,26.0]
[1747485063338,137.65717419,168.03,167.95,26.0]
[1747485063519,131.7056,168.03,167.96,18.64964886]
[1747485064430,131.7056,168.03,167.99,26.0]
[1747485064619,18.94,168.05,167.99,26.0]
[1747485065144,24.89069048,168.05,167.99,31.9525041]
[1747485065441,24.89069048,168.05,167.99,26.0]
[1747485066715,24.89069048,168.05,167.99,31.95272696]
[1747485067240,24.89069048,168.05,167.99,26.0]
[1747485067438,24.89069048,168.05,167.94,14.8862689]
[1747485067739,131.7056,168.04,167.95,26.0]
[1747485067940,131.7056,168.04,167.94,24.60415642]
[1747485067941,131.7056,168.04,167.94,24.91450756]
[1747485068118,6.1548,168.02,167.94,18.96]
[1747485069252,5.95202666,168.01,167.94,18.96]
[1747485069420,131.7056,168.0,167.94,18.96]
[1747485070418,5.95273528,167.99,167.94,18.96]
[1747485070624,137.658105,168.0,167.94,24.91448546]
[1747485072146,131.7056,168.0,167.94,24.91448546]
[1747485073053,131.7056,168.0,167.95,18.64964886]
[1747485073261,131.7056,168.0,167.95,44.64964886]
[1747485074358,131.7056,168.0,167.96,5.95379852]
[1747485074660,156.59629478,168.05,167.97,18.64964886]
[1747485076444,156.59629478,168.05,167.98,5.95308965]
[1747485079150,150.6456,168.05,167.98,31.95308965]
[1747485079468,156.59621614,168.05,167.98,31.95308965]
[1747485082750,156.59621614,168.05,167.98,26.0]
[1747485084558,150.6456,168.05,167.98,31.95303992]
[1747485085941,156.59632879,168.05,167.98,31.95303992]
[1747485086342,18.94,168.05,167.99,18.64964886]
[1747485086870,5.9501352,168.07,167.99,18.64964886]
[1747485087044,137.65522786,168.08,167.99,18.64964886]
[1747485088039,137.65522786,168.08,168.0,5.95238095]
[1747485091682,137.65522786,168.08,167.99,24.6022701]
[1747485093767,152.52909744,168.08,167.99,5.95262124]
[1747485095447,152.52909744,168.08,168.01,26.0]
[1747485095652,131.7056,168.07,168.01,26.0]
[1747485096381,131.7056,168.06,167.99,26.0]
[1747485096947,131.7056,168.06,167.96,5.76613609]
[1747485097163,6.0381,168.04,167.96,4.22293609]
[1747485097362,20.83085345,168.02,167.96,4.22293609]
[1747485097547,131.7056,168.01,167.96,4.22293609]
[1747485097867,131.7056,168.0,167.96,4.22293609]
[1747485098384,6.2114,167.98,167.96,4.22293609]
[1747485098548,44.92,167.97,167.96,2.55633609]
[1747485098752,150.35524886,167.96,167.91,8.44587218]
[1747485098966,150.35524886,167.96,167.84,50.89804391]
[1747485099276,131.7056,167.95,167.84,24.89804391]
[1747485099580,6.2114,167.92,167.79,7.49723074]
[1747485099773,18.94,167.91,167.79,26.43723074]
[1747485100067,131.7056,167.9,167.79,7.49723074]
[1747485100258,131.7056,167.9,167.79,33.49723074]
[1747485100854,5.95628089,167.89,167.79,33.49723074]
[1747485101584,5.95628089,167.89,167.79,27.5374]
[1747485101881,176.35524886,167.88,167.76,18.94]
[1747485102060,176.35524886,167.88,167.76,44.94]
[1747485102561,176.35524886,167.88,167.76,31.9608059]
[1747485102756,176.35524886,167.88,167.72,18.94]
[1747485102757,5.95841029,167.83,167.72,18.94]
[1747485102957,5.95841029,167.83,167.71,5.96267366]
[1747485103273,5.95841029,167.83,167.74,26.0]
[1747485103472,5.95841029,167.83,167.71,24.90267366]
[1747485103677,26.0,167.8,167.69,8.44587218]
[1747485103986,37.58964886,167.79,167.69,8.44587218]
[1747485104310,18.94,167.78,167.67,26.0]
[1747485104871,5.96054121,167.77,167.67,31.96404269]
[1747485105262,20.86189425,167.77,167.67,26.0]
[1747485105486,20.86189425,167.77,167.63,24.90551929]
[1747485105487,18.64964886,167.74,167.63,24.90551929]
[1747485105659,44.64964886,167.74,167.62,5.96582107]
[1747485105987,18.64964886,167.72,167.59,5.96694313]
[1747485106159,26.0,167.69,167.58,9.11374267]
[1747485106668,18.64964886,167.68,167.58,9.11374267]
[1747485106870,5.96480763,167.65,167.58,9.11374267]
[1747485107092,18.94,167.65,167.56,40.41369888]
[1747485107296,18.94,167.67,167.59,26.0]
[1747485108290,18.64964886,167.72,167.59,26.0]
[1747485108472,18.96,167.71,167.6,18.64964886]
[1747485108786,18.96,167.71,167.61,18.96]
[1747485108971,5.96302921,167.7,167.62,5.96587519]
[1747485109487,18.96,167.71,167.62,5.96587519]
[1747485109488,18.96,167.71,167.62,31.96587519]
[1747485110269,26.0,167.74,167.63,18.64964886]
[1747485110691,24.92159733,167.75,167.66,26.0]
[1747485111072,18.96,167.75,167.67,5.96409614]
[1747485111783,18.96,167.75,167.67,24.92409614]
[1747485111964,18.96,167.75,167.7,26.0]
[1747485112165,18.96,167.83,167.72,26.0]
[1747485112366,65.81443603,167.83,167.72,26.0]
[1747485112564,18.64964886,167.82,167.67,24.92409614]
[1747485112783,18.64964886,167.82,167.68,26.0]
[1747485113193,18.64964886,167.79,167.68,26.0]
[1747485113378,18.96,167.78,167.68,26.0]
[1747485113580,37.58964886,167.77,167.68,26.0]
[1747485113892,63.58964886,167.77,167.63,6.2571]
[1747485114072,63.58964886,167.77,167.62,7.60017126]
[1747485114264,63.58964886,167.77,167.65,26.0]
[1747485115190,18.64964886,167.75,167.65,26.0]
[1747485116091,20.8631378,167.76,167.65,26.0]
[1747485116294,18.64964886,167.75,167.65,26.0]
[1747485116686,26.0,167.74,167.62,7.60042563]
[1747485116898,26.0,167.74,167.62,33.60042563]
[1747485117482,175.23469002,167.73,167.62,33.60042563]
[1747485117692,131.7056,167.72,167.65,26.0]
[1747485118196,131.7056,167.72,167.67,26.0]
[1747485118509,131.7056,167.76,167.71,26.0]
[1747485119703,131.7056,167.76,167.72,5.96231814]
[1747485120300,131.7056,167.8,167.72,5.96231814]
[1747485120599,131.7056,167.83,167.75,26.0]
[1747485120790,131.7056,167.83,167.76,26.0]
[1747485121094,137.6641227,167.83,167.76,26.0]
[1747485121299,137.6641227,167.83,167.73,19.02]
[1747485121477,152.56014844,167.83,167.73,24.98186236]
[1747485121671,152.56014844,167.83,167.73,5.96186236]
[1747485122699,131.7056,167.83,167.73,5.96186236]
[1747485122880,137.66417331,167.83,167.73,5.96186236]
[1747485125898,131.7056,167.83,167.76,26.0]
[1747485126102,131.7056,167.87,167.77,18.64964886]
[1747485126274,131.7056,167.87,167.8,26.0]
[1747485126879,137.66270879,167.87,167.8,26.0]
[1747485127087,131.7056,167.87,167.8,26.0]
[1747485127405,131.7056,167.87,167.81,5.95912043]
[1747485128276,5.95600003,167.9,167.81,5.95912043]
[1747485128489,5.95600003,167.9,167.8,31.95941988]
[1747485129701,20.84581539,167.9,167.82,26.0]
[1747485131088,5.95600003,167.9,167.82,26.0]
[1747485132190,20.84581539,167.9,167.8,19.02]
[1747485132401,131.7056,167.89,167.8,19.02]
[1747485133106,131.7056,167.88,167.8,19.02]
[1747485133409,131.7056,167.88,167.79,26.0]
[1747485134208,5.95699052,167.87,167.79,31.95977149]
[1747485134372,5.95699052,167.87,167.79,26.0]
[1747485134576,5.95699052,167.87,167.78,45.06]
[1747485135712,131.7056,167.86,167.78,26.0]
[1747485135910,32.2843,167.84,167.72,1.5034]
[1747485136083,150.35524886,167.83,167.72,1.5034]
[1747485136289,18.64964886,167.81,167.7,26.0]
[1747485136488,37.74964886,167.81,167.7,26.0]
[1747485136692,37.74964886,167.81,167.68,5.96364975]
[1747485136892,157.7056,167.8,167.68,25.06364975]
[1747485137089,131.7056,167.8,167.69,18.64964886]
[1747485137321,131.7056,167.79,167.72,26.0]
[1747485138720,131.7056,167.79,167.73,5.96196267]
[1747485139005,131.7056,167.79,167.72,26.0]
[1747485139006,137.66556933,167.79,167.72,31.96220887]
[1747485139210,131.7056,167.79,167.72,31.96220887]
[1747485139600,137.66549386,167.79,167.72,31.96220887]
[1747485140121,137.66549386,167.79,167.72,26.0]
[1747485140804,131.7056,167.78,167.71,19.14]
[1747485141693,131.7056,167.77,167.71,19.14]
[1747485142918,5.96089651,167.76,167.71,19.14]
[1747485145601,5.96089651,167.76,167.7,5.96286882]
[1747485145817,5.96089651,167.76,167.67,46.7053]
[1747485146036,131.7056,167.75,167.65,26.0]
[1747485146200,131.7056,167.75,167.65,5.96469776]
[1747485146515,131.7056,167.75,167.65,31.96469776]
[1747485147317,5.96160724,167.74,167.65,31.96469776]
[1747485147900,20.86562536,167.74,167.65,26.0]
[1747485148116,150.8456,167.73,167.62,5.96578378]
[1747485148415,131.7056,167.72,167.62,5.96578378]
[1747485148821,176.35524886,167.71,167.59,39.8619]
[1747485148998,176.35524886,167.71,167.59,1.5619]
[1747485149812,176.35524886,167.71,167.54,52.71080617]
[1747485149813,18.64964886,167.67,167.55,25.12829146]
[1747485149994,18.64964886,167.65,167.55,25.12829146]
[1747485150200,157.1163,167.66,167.55,25.12829146]
[1747485150201,157.1163,167.66,167.55,51.12829146]
[1747485150797,5.96480763,167.65,167.55,51.12829146]
[1747485151015,150.8456,167.66,167.55,51.12829146]
[1747485151321,150.8456,167.66,167.56,18.64964886]
[1747485151524,150.8456,167.66,167.59,26.0]
[1747485151826,131.7056,167.66,167.59,26.0]
[1747485152596,131.7056,167.69,167.6,18.64964886]
[1747485152924,131.7056,167.73,167.68,26.0]
[1747485153132,5.96095876,167.76,167.68,26.0]
[1747485154228,20.86189425,167.77,167.68,26.0]
[1747485155126,5.96054121,167.77,167.68,31.96365639]
[1747485155330,175.96709746,167.78,167.69,1.6662]
[1747485155546,181.92739505,167.78,167.69,1.6662]
[1747485156215,181.92739505,167.78,167.7,26.0]
[1747485158431,181.92739505,167.78,167.7,31.96296233]
[1747485159435,131.7056,167.77,167.7,31.96296233]
[1747485159837,137.66623313,167.77,167.7,31.96296233]
[1747485160733,131.7056,167.77,167.7,31.96296233]
[1747485162641,137.66624457,167.77,167.7,31.96296233]
[1747485162843,131.7056,167.77,167.7,46.87053537]
[1747485163013,131.7056,167.82,167.74,26.0]
[1747485163339,131.7056,167.82,167.75,19.18]
[1747485164039,131.7056,167.82,167.76,5.96089651]
[1747485164740,131.7056,167.82,167.77,1.5935]
[1747485165539,5.95770032,167.85,167.77,1.5935]
[1747485165743,156.80297648,167.86,167.77,27.5935]
[1747485165924,5.95669991,167.88,167.8,5.95947556]
[1747485166240,19.14,167.92,167.84,26.0]
[1747485166450,5.95563565,167.91,167.84,26.0]
[1747485167251,20.84456424,167.91,167.81,45.18]
[1747485167617,20.84456424,167.91,167.82,19.2]
[1747485168258,157.7056,167.9,167.77,20.24314886]
[1747485168545,18.64964886,167.88,167.78,19.22]
[1747485168929,18.64964886,167.88,167.78,45.22]
[1747485169140,157.7056,167.87,167.78,19.22]
[1747485169320,18.64964886,167.86,167.77,1.5935]
[1747485169522,131.7056,167.85,167.75,51.8719]
[1747485170849,5.95805529,167.84,167.75,57.833074]
[1747485171148,5.95805529,167.84,167.75,51.8719]
[1747485171345,20.85319351,167.84,167.75,57.83295229]
[1747485171648,20.85319351,167.84,167.75,51.8719]
[1747485171871,20.85319351,167.84,167.75,32.6519]
[1747485172528,20.85319351,167.84,167.75,38.6130143]
[1747485174655,131.7056,167.85,167.79,26.0]
[1747485174947,137.66334407,167.85,167.8,19.2]
[1747485176028,137.66334407,167.85,167.78,19.18]
[1747485176652,137.66334407,167.85,167.76,26.0]
[1747485176653,152.55759488,167.85,167.76,26.0]
[1747485179335,131.7056,167.84,167.76,26.0]
[1747485179657,131.7056,167.83,167.75,6.6519]
[1747485179832,131.7056,167.83,167.75,26.0]
[1747485180334,5.95876534,167.82,167.75,26.0]
[1747485180531,5.95876534,167.82,167.73,1.5935]
[1747485180741,5.95876534,167.82,167.74,26.0]
[1747485180943,20.85567869,167.82,167.74,26.0]
[1747485181134,5.95876534,167.82,167.74,26.0]
[1747485181532,137.783,167.81,167.69,20.7941]
[1747485181761,131.7056,167.8,167.69,39.9741]
[1747485182055,131.7056,167.8,167.69,26.75737528]
[1747485182242,131.7056,167.8,167.7,18.64964886]
[1747485182642,131.7056,167.8,167.71,31.96267366]
[1747485183351,152.56384198,167.8,167.71,26.0]
[1747485184233,131.7056,167.79,167.69,1.6141]
[1747485184646,152.56625084,167.78,167.68,26.0]
[1747485185341,152.56625084,167.78,167.65,7.6446]
[1747485185342,138.2207,167.77,167.65,7.6446]
[1747485185534,131.7056,167.76,167.65,26.9646]
[1747485185735,131.7056,167.76,167.65,52.9646]
[1747485186473,131.7056,167.76,167.68,26.0]
[1747485186756,131.7056,167.76,167.69,5.96338481]
[1747485186936,137.66657354,167.76,167.68,31.96363194]
[1747485190136,152.56881483,167.76,167.68,26.0]
[1747485191167,137.66657354,167.76,167.68,26.0]
[1747485191463,137.66516361,167.8,167.72,26.0]
[1747485191652,131.7056,167.8,167.74,1.5611]
[1747485191976,5.95887264,167.82,167.74,1.5611]
[1747485192483,5.95887264,167.82,167.75,5.96125186]
[1747485193147,5.95887264,167.82,167.74,7.52268163]
[1747485193763,170.95072714,167.83,167.74,7.52268163]
[1747485197159,185.84675288,167.83,167.74,20.8611]
[1747485197363,185.84675288,167.83,167.74,26.8226827]
[1747485197559,185.84675288,167.83,167.74,1.5611]
[1747485197874,185.84675288,167.83,167.73,19.3]
[1747485198585,5.95912043,167.81,167.73,19.3]
[1747485198794,131.7056,167.8,167.7,26.80405928]
[1747485199079,131.7056,167.8,167.7,19.28]
[1747485199080,6.6009,167.78,167.7,19.28]
[1747485200768,5.96054121,167.77,167.7,25.24302625]
[1747485200972,150.8856,167.79,167.71,26.0]
[1747485201782,156.84555071,167.79,167.71,26.0]
[1747485202151,131.7056,167.79,167.72,5.96231814]
[1747485202464,131.7056,167.79,167.73,44.64964886]
[1747485203670,131.7056,167.79,167.73,26.0]
[1747485204288,30.41195338,167.81,167.77,26.0]
[1747485204470,30.41195338,167.81,167.77,45.3]
[1747485204950,30.41195338,167.81,167.78,18.64964886]
[1747485205148,131.7056,167.84,167.77,45.3]
[1747485206090,137.66394049,167.84,167.74,39.83780724]
[1747485206390,137.66394049,167.84,167.71,10.20288333]
[1747485206391,157.5865,167.83,167.71,10.20288333]
[1747485206692,131.7056,167.82,167.72,26.0]
[1747485207553,131.7056,167.82,167.71,10.20288333]
[1747485207956,131.7056,167.82,167.72,26.0]
[1747485208350,131.7056,167.82,167.73,31.96196267]
[1747485209275,137.66441896,167.82,167.73,31.96196267]
[1747485209772,152.56133231,167.82,167.73,26.0]
[1747485210360,131.7056,167.81,167.73,26.0]
[1747485211381,5.95947556,167.8,167.73,26.0]
[1747485213397,131.7056,167.79,167.73,31.96186862]
[1747485213581,137.66546318,167.79,167.73,31.96186862]
[1747485213778,131.7056,167.79,167.73,31.96186862]
[1747485214191,131.7056,167.79,167.73,46.86677531]
[1747485216117,25.23846584,167.83,167.74,18.64964886]
[1747485216313,131.7056,167.85,167.78,1.5728]
[1747485216608,26.54948555,167.86,167.78,20.8728]
[1747485216816,20.59202259,167.86,167.78,20.8728]
[1747485217176,131.7056,167.89,167.81,26.0]
[1747485217410,131.7056,167.93,167.83,26.0]
[1747485217616,137.6605544,167.93,167.84,25.25805529]
[1747485218379,131.7056,167.93,167.84,25.25805529]
[1747485219606,19.28,167.96,167.88,26.0]
[1747485220680,25.23387683,167.96,167.88,31.95662742]
[1747485221096,25.23387683,167.96,167.88,26.0]
[1747485221617,25.23387683,167.96,167.88,31.95660297]
[1747485221998,131.7056,167.97,167.89,18.64964886]
[1747485222422,5.95298705,167.99,167.9,19.32]
[1747485222785,5.95298705,167.99,167.91,5.95557143]
[1747485223707,19.28,168.01,167.91,31.95557143]
[1747485224192,25.2320997,168.01,167.91,31.95557143]
[1747485227900,40.11216636,168.01,167.91,26.0]
[1747485228502,131.7056,168.0,167.9,31.95586489]
[1747485229022,5.95273528,167.99,167.9,31.95586489]
[1747485229720,137.65808245,168.0,167.9,46.84568025]
[1747485230395,137.65808245,168.0,167.93,26.0]
[1747485230705,131.7056,168.0,167.94,1.5239]
[1747485231022,137.6580079,168.0,167.94,1.5239]
[1747485231623,137.6580079,168.0,167.94,7.47813531]
[1747485233126,137.6580079,168.0,167.94,1.5239]
[1747485233430,137.6580079,168.0,167.93,31.95477272]
[1747485234835,137.65798402,168.0,167.93,31.95477272]
[1747485237224,131.7056,168.04,167.94,25.18084886]
[1747485237425,131.7056,168.04,167.95,19.22]
[1747485238134,137.65660009,168.04,167.96,5.95379852]
[1747485240705,152.53401023,168.04,167.95,25.17405614]
[1747485240910,152.53401023,168.04,167.93,64.44]
[1747485241107,152.53401023,168.04,167.93,51.1546156]
[1747485241712,178.53401023,168.04,167.93,45.2]
[1747485242238,178.53401023,168.04,167.93,26.0]
[1747485242434,178.53401023,168.04,167.93,31.95480166]
[1747485242736,178.53401023,168.04,167.93,51.17480166]
[1747485244937,18.64964886,168.03,167.93,19.22]
[1747485245125,6.453,168.0,167.86,20.7226]
[1747485245339,131.7056,167.99,167.87,19.24]
[1747485245632,131.7056,167.99,167.88,26.0]
[1747485245814,150.9256,167.99,167.88,26.0]
[1747485246220,5.95308965,167.98,167.88,5.95663569]
[1747485246422,5.95308965,167.98,167.88,31.95663569]
[1747485247439,137.65846516,167.99,167.89,18.64964886]
[1747485247623,131.7056,167.99,167.92,26.0]
[1747485247939,5.95240962,168.0,167.92,26.0]
[1747485248649,5.95167241,168.02,167.92,26.0]
[1747485248814,5.95167241,168.02,167.93,19.22]
[1747485249339,131.7056,168.03,167.96,5.95379852]
[1747485249536,176.9256,168.07,167.96,5.95379852]
[1747485249723,150.9256,168.07,167.96,5.95379852]
[1747485250143,131.7056,168.06,167.96,5.95379852]
[1747485250928,137.65585586,168.06,167.96,5.95379852]
[1747485253545,137.65585586,168.06,167.97,18.64964886]
[1747485254625,137.65585586,168.06,167.98,31.95308965]
[1747485254828,137.65585586,168.06,167.99,19.2]
[1747485255628,131.7056,168.06,167.99,19.2]
[1747485256022,137.6558973,168.06,167.99,19.2]
[1747485256635,137.6558973,168.06,167.99,25.15253689]
[1747485259754,137.6558973,168.06,167.99,19.2]
[1747485260129,137.6558973,168.06,167.99,25.15272791]
[1747485260555,137.6558973,168.06,167.99,19.2]
[1747485261053,137.6558973,168.06,167.99,25.15268147]
[1747485261379,137.6558973,168.06,167.99,5.95268147]
[1747485261537,137.6558973,168.06,167.99,25.09268147]
[1747485264765,131.7056,168.06,167.99,25.09268147]
[1747485265870,137.65596493,168.06,167.99,5.95268147]
[1747485266160,26.0,168.02,167.95,4.2405277]
[1747485266356,137.8812,168.01,167.95,4.2405277]
[1747485266763,5.95238095,168.0,167.95,4.2405277]
[1747485266935,143.8333267,168.01,167.95,4.2405277]
[1747485267676,143.8333267,168.01,167.93,26.0]
[1747485267841,143.8333267,168.01,167.93,31.9547882]
[1747485268547,137.6577267,168.01,167.93,31.9547882]
[1747485271575,131.7056,168.01,167.93,31.9547882]
[1747485271754,137.65764966,168.01,167.93,31.9547882]
[1747485271981,131.7056,168.01,167.93,46.84194356]
[1747485272646,137.65765883,168.01,167.93,46.84194356]
[1747485272973,137.65765883,168.01,167.94,18.64964886]
[1747485272974,131.7056,168.01,167.94,18.64964886]
[1747485273145,131.7056,168.01,167.95,19.1]
[1747485273662,131.7056,168.01,167.96,5.95379852]
[1747485276387,5.95143836,168.03,167.96,5.95379852]
[1747485278363,20.8297339,168.03,167.94,5.95450756]
[1747485278860,20.8297339,168.03,167.93,31.95480563]
[1747485279074,20.8297339,168.03,167.93,51.05480563]
[1747485279448,131.7056,168.02,167.93,51.05480563]
[1747485280048,5.95202666,168.01,167.93,51.05480563]
[1747485284684,137.65737596,168.02,167.93,51.05480563]
[1747485285488,137.65737596,168.02,167.93,65.94196099]
[1747485285660,137.65737596,168.02,167.94,18.64964886]
[1747485285661,131.7056,168.02,167.94,18.64964886]
[1747485286774,131.7056,168.02,167.98,26.0]
[1747485288876,131.7056,168.02,167.98,31.9529386]
[1747485289387,131.7056,168.02,167.98,26.0]
[1747485289583,131.7056,168.02,167.98,31.9529126]
[1747485290665,5.95058827,168.06,167.98,31.9529126]
[1747485290976,5.95058827,168.06,167.99,19.02]
[1747485292290,5.95058827,168.06,168.0,5.95238095]
[1747485292490,131.7056,168.07,168.0,5.95238095]
[1747485292672,137.65557555,168.07,168.0,5.95238095]
[1747485296673,137.65557555,168.07,167.96,4.2405277]
[1747485296872,152.53033011,168.07,167.96,31.95378158]
[1747485300203,137.65557555,168.07,167.99,26.0]
[1747485300378,137.65557555,168.07,167.96,5.95378158]
[1747485300703,152.53033011,168.07,167.96,45.0]
[1747485301196,6.2792,168.05,167.93,1.5086]
[1747485301398,131.7056,168.04,167.94,26.0]
[1747485301903,131.7056,168.04,167.93,19.0]
[1747485302104,26.0,168.0,167.89,1.5907]
[1747485302286,6.2792,167.98,167.85,1.5907]
[1747485302490,131.7056,167.97,167.87,19.0]
[1747485302676,131.7056,167.97,167.9,26.0]
[1747485303591,131.7056,167.97,167.88,26.0]
[1747485304191,137.65938898,167.97,167.89,5.95628089]
[1747485304386,131.7056,167.97,167.89,5.95628089]
[1747485304589,137.65922211,167.97,167.89,5.95628089]
[1747485306412,5.95415302,167.95,167.89,5.95628089]
[1747485307105,5.95415302,167.95,167.85,1.5907]
[1747485307312,131.7056,167.94,167.86,24.9573454]
[1747485307487,131.7056,167.94,167.86,50.9573454]
[1747485307690,131.7056,167.93,167.86,26.0]
[1747485309212,137.66081676,167.92,167.83,24.93829588]
[1747485309417,131.7056,167.92,167.84,4.26299282]
[1747485309622,131.7056,167.92,167.84,30.26299282]
[1747485311301,5.95557143,167.91,167.84,4.26299282]
[1747485311611,5.95557143,167.91,167.84,5.95801919]
[1747485311612,131.7056,167.9,167.84,5.95801919]
[1747485312003,131.7056,167.9,167.83,5.95829224]
[1747485312203,131.7056,167.89,167.82,26.0]
[1747485312397,131.7056,167.89,167.82,45.0]
[1747485312597,131.7056,167.89,167.82,50.95870262]
[1747485313312,5.95663569,167.88,167.82,50.95870228]
[1747485313504,131.7056,167.89,167.82,31.95870228]
[1747485313920,137.66193406,167.89,167.82,31.95870228]
[1747485314107,131.7056,167.89,167.82,31.95870228]
[1747485316424,137.66196993,167.89,167.82,31.95870228]
[1747485316601,131.7056,167.89,167.82,46.85561563]
[1747485317607,131.7056,167.94,167.85,26.0]
[1747485318426,137.66022388,167.94,167.86,5.9573454]
[1747485319626,137.66022388,167.94,167.85,26.0]
[1747485319827,152.54649278,167.94,167.85,26.0]
[1747485320705,131.7056,167.93,167.81,7.6206718]
[1747485320906,18.64964886,167.92,167.82,26.0]
[1747485321331,131.7056,167.91,167.8,19.1]
[1747485321630,131.7056,167.9,167.83,26.0]
[1747485322518,137.66165846,167.9,167.84,5.95805529]
[1747485322720,131.7056,167.9,167.84,5.95805529]
[1747485324334,131.7056,167.94,167.87,26.0]
[1747485324509,131.7056,167.94,167.87,45.1]
[1747485325637,137.66013431,167.94,167.87,45.1]
[1747485328535,152.54640321,167.94,167.87,19.1]
[1747485329138,137.66013431,167.94,167.87,19.1]
[1747485330442,5.95521676,167.92,167.87,19.1]
[1747485331819,131.7056,167.93,167.87,25.05670535]
[1747485333633,131.7056,167.93,167.88,27.5748]
[1747485335017,131.7056,167.93,167.88,26.0]
[1747485335614,131.7056,167.93,167.88,31.95639178]
[1747485335818,137.66051467,167.93,167.87,19.1]
[1747485336451,137.66051467,167.93,167.87,25.05697331]
[1747485336737,137.66051467,167.93,167.87,19.1]
[1747485338147,137.66051467,167.93,167.86,31.95724283]
[1747485343045,137.66051467,167.93,167.84,1.5748]
[1747485343229,26.0,167.89,167.83,4.26299282]
[1747485344149,26.0,167.89,167.81,5.95888266]
[1747485344846,19.06,167.9,167.81,5.95888266]
[1747485345224,5.95628089,167.89,167.79,5.95983074]
[1747485345535,20.84698313,167.89,167.79,5.95983074]
[1747485346038,20.84698313,167.89,167.78,61.61224216]
[1747485346551,32.6295,167.86,167.76,4.26299282]
[1747485347451,20.85195113,167.85,167.76,4.26299282]
[1747485347857,20.85195113,167.85,167.76,10.22388009]
[1747485348042,5.95770032,167.85,167.76,10.22388009]
[1747485349130,5.95699052,167.87,167.76,10.22388009]
[1747485350255,5.95699052,167.87,167.76,5.96088727]
[1747485351152,5.95699052,167.87,167.77,20.29174886]
[1747485351337,5.95699052,167.87,167.79,26.0]
[1747485352660,5.95699052,167.87,167.8,5.95947556]
[1747485355573,5.95699052,167.87,167.79,26.0]
[1747485356466,20.84946684,167.87,167.79,26.0]
[1747485356668,20.84946684,167.87,167.79,31.95982152]
[1747485356843,5.95699052,167.87,167.79,31.95982152]
[1747485357481,131.7056,167.88,167.8,18.64964886]
[1747485357641,131.7056,167.88,167.81,6.2281]
[1747485358041,131.7056,167.93,167.82,26.0]
[1747485358343,131.7056,167.93,167.83,1.6421]
[1747485358543,5.9553141,167.92,167.84,45.04]
[1747485359874,5.9553141,167.92,167.85,5.95770032]
[1747485360970,5.9553141,167.92,167.84,45.04]
[1747485361869,20.84335602,167.92,167.84,45.04]
[1747485362168,5.9553141,167.92,167.84,19.04]
[1747485362371,137.66054421,167.93,167.84,24.99803321]
[1747485362588,137.66054421,167.93,167.84,50.99803321]
[1747485363369,131.7056,167.93,167.85,18.64964886]
[1747485363574,19.04,167.94,167.85,18.64964886]
[1747485364047,5.95452877,167.94,167.86,5.9573454]
[1747485365567,137.65987123,167.95,167.86,5.9573454]
[1747485366374,131.7056,167.95,167.89,26.0]
[1747485367566,137.65980308,167.95,167.88,6.263]
[1747485368267,131.7056,167.94,167.86,26.0]